[Event "*** Titled Tuesday Blitz"]
[Site "Chess.com"]
[Date "2019.03.05"]
[Round "1"]
[White "Denis_Palkovich"]
[Black "Lovkov_Roman"]
[Result "1/2-1/2"]
[WhiteElo "2258"]
[BlackElo "2604"]
[TimeControl "180+2"]
[EndTime "13:11:53 PST"]
[Termination "Game drawn by agreement"]

1. d4 {[%clk 0:03:01.9]} 1... d5 {[%clk 0:02:59.7]} 2. Bf4 {[%clk 0:03:03.2]}
2... c5 {[%clk 0:03:00]} 3. e3 {[%clk 0:03:04.5]} 3... Nc6 {[%clk 0:03:00.8]} 4.
c3 {[%clk 0:03:04.8]} 4... cxd4 {[%clk 0:02:59.9]} 5. exd4 {[%clk 0:03:05.6]}
5... Nf6 {[%clk 0:03:00.6]} 6. Nd2 {[%clk 0:03:06.9]} 6... Bf5 {[%clk
0:03:00.7]} 7. Qb3 {[%clk 0:02:59.3]} 7... Qd7 {[%clk 0:02:58.3]} 8. Ngf3 {[%clk
0:02:58.5]} 8... a6 {[%clk 0:02:56.2]} 9. a4 {[%clk 0:02:50.2]} 9... e6 {[%clk
0:02:54.4]} 10. Be2 {[%clk 0:02:41]} 10... Be7 {[%clk 0:02:49.5]} 11. O-O {[%clk
0:02:42.3]} 11... O-O {[%clk 0:02:50.3]} 12. h3 {[%clk 0:02:42.8]} 12... Bd6
{[%clk 0:02:43]} 13. Bxd6 {[%clk 0:02:30.1]} 13... Qxd6 {[%clk 0:02:44.9]} 14.
a5 {[%clk 0:02:21]} 14... Qc7 {[%clk 0:02:43.1]} 15. Qa3 {[%clk 0:02:15.9]}
15... Rfc8 {[%clk 0:02:36.8]} 16. Rfe1 {[%clk 0:02:16.8]} 16... Ne8 {[%clk
0:02:17.3]} 17. Nh4 {[%clk 0:02:13]} 17... Bg6 {[%clk 0:02:17.9]} 18. Nxg6
{[%clk 0:02:12.4]} 18... hxg6 {[%clk 0:02:19.8]} 19. Nf3 {[%clk 0:02:08.1]}
19... Nd6 {[%clk 0:02:19.1]} 20. Bd3 {[%clk 0:02:06.5]} 20... Nb8 {[%clk
0:01:50.8]} 21. Ne5 {[%clk 0:02:02.3]} 21... Nd7 {[%clk 0:01:51.8]} 22. Qb4
{[%clk 0:01:42.4]} 22... Nxe5 {[%clk 0:01:47.4]} 23. Rxe5 {[%clk 0:01:21.7]}
23... Rab8 {[%clk 0:01:45.5]} 24. h4 {[%clk 0:01:17.5]} 24... b5 {[%clk
0:01:41.1]} 25. axb6 {[%clk 0:01:11.4]} 25... Rxb6 {[%clk 0:01:41.8]} 26. Qa3
{[%clk 0:01:12.8]} 26... Rcb8 {[%clk 0:01:41.1]} 27. Re2 {[%clk 0:01:11.6]}
27... Nc4 {[%clk 0:01:38]} 28. Bxc4 {[%clk 0:01:11.5]} 28... Qxc4 {[%clk
0:01:39.9]} 29. Rd2 {[%clk 0:00:54.3]} 29... Qc7 {[%clk 0:01:29.1]} 30. g3
{[%clk 0:00:38.4]} 30... Qb7 {[%clk 0:01:24.4]} 31. b4 {[%clk 0:00:38.5]} 31...
Rc6 {[%clk 0:01:24.2]} 32. Rd3 {[%clk 0:00:35.9]} 32... Rbc8 {[%clk 0:01:24.7]}
33. Rf3 {[%clk 0:00:32.2]} 33... Qc7 {[%clk 0:01:25.3]} 34. Rc1 {[%clk
0:00:20.8]} 34... Qd6 {[%clk 0:01:25.4]} 35. Kg2 {[%clk 0:00:21]} 35... Rc4
{[%clk 0:01:26.3]} 36. Re1 {[%clk 0:00:18.5]} 36... Qc6 {[%clk 0:01:26]} 37.
Ree3 {[%clk 0:00:19.9]} 37... Qd6 {[%clk 0:01:21.9]} 38. Qa5 {[%clk 0:00:20.9]}
38... R4c6 {[%clk 0:01:19.9]} 39. Qa4 {[%clk 0:00:20.3]} 39... Qd8 {[%clk
0:01:14]} 40. Qa3 {[%clk 0:00:20.4]} 40... Qb6 {[%clk 0:01:12.8]} 41. Qa4 {[%clk
0:00:20.4]} 41... Qb5 {[%clk 0:01:13.5]} 42. Qa3 {[%clk 0:00:19.6]} 42... Ra8
{[%clk 0:01:11.7]} 43. Qa1 {[%clk 0:00:17.8]} 43... a5 {[%clk 0:01:09.5]} 44.
bxa5 {[%clk 0:00:18.6]} 44... Rxa5 {[%clk 0:01:10.1]} 45. Qf1 {[%clk 0:00:19.1]}
45... Qb7 {[%clk 0:01:05.5]} 46. Qe1 {[%clk 0:00:19.4]} 46... Rb6 {[%clk
0:01:03.4]} 47. Qe2 {[%clk 0:00:19.5]} 47... Rb2 {[%clk 0:01:03]} 48. Qd3 {[%clk
0:00:19.1]} 48... Raa2 {[%clk 0:01:01.6]} 49. Qf1 {[%clk 0:00:19]} 49... Rb1
{[%clk 0:00:58.2]} 50. Qd3 {[%clk 0:00:17.9]} 50... Raa1 {[%clk 0:00:56.8]} 51.
Rf4 {[%clk 0:00:10.9]} 51... Rg1+ {[%clk 0:00:55.1]} 52. Kf3 {[%clk 0:00:11.9]}
52... Rad1 {[%clk 0:00:48]} 53. Qc2 {[%clk 0:00:10.1]} 53... Rc1 {[%clk
0:00:48.3]} 54. Qa2 {[%clk 0:00:10.8]} 54... Ra1 {[%clk 0:00:37.4]} 55. Qe2
{[%clk 0:00:07.8]} 55... Rgc1 {[%clk 0:00:37.1]} 56. Kg2 {[%clk 0:00:07.4]}
56... Rg1+ {[%clk 0:00:36.6]} 57. Kf3 {[%clk 0:00:07.9]} 57... Qc8 {[%clk
0:00:34.2]} 58. Qb2 {[%clk 0:00:08]} 58... Rgb1 {[%clk 0:00:34.1]} 59. Qe2
{[%clk 0:00:08.1]} 59... Rc1 {[%clk 0:00:31.7]} 60. Qb2 {[%clk 0:00:08.7]} 60...
Rab1 {[%clk 0:00:32.4]} 61. Qa3 {[%clk 0:00:09.4]} 61... Ra1 {[%clk 0:00:25.3]}
62. Qe7 {[%clk 0:00:10.7]} 62... Qf8 {[%clk 0:00:21.5]} 63. Rxe6 {[%clk
0:00:11.4]} 63... Rxc3+ {[%clk 0:00:21.5]} 64. Kg2 {[%clk 0:00:11.7]} 64... Qxe7
{[%clk 0:00:21.1]} 65. Rxe7 {[%clk 0:00:13.2]} 65... f6 {[%clk 0:00:21.6]} 66.
Rd7 {[%clk 0:00:10.5]} 66... Ra5 {[%clk 0:00:22.4]} 67. h5 {[%clk 0:00:10.6]}
67... g5 {[%clk 0:00:23.4]} 68. Rf5 {[%clk 0:00:12.2]} 68... Rc2 {[%clk
0:00:23]} 69. h6 {[%clk 0:00:11.6]} 69... gxh6 {[%clk 0:00:21.1]} 70. Rxf6
{[%clk 0:00:13.1]} 70... Raa2 {[%clk 0:00:18.1]} 71. Rxd5 {[%clk 0:00:12.1]}
71... Kg7 {[%clk 0:00:18.2]} 72. Rdf5 {[%clk 0:00:13.3]} 72... Rd2 {[%clk
0:00:18.5]} 73. d5 {[%clk 0:00:14.5]} 73... Rd4 {[%clk 0:00:19]} 74. d6 {[%clk
0:00:15.5]} 74... Rad2 {[%clk 0:00:19.7]} 75. Re6 {[%clk 0:00:13.7]} 75... Rxd6
{[%clk 0:00:20.5]} 76. Rxd6 {[%clk 0:00:14.5]} 76... Rxd6 {[%clk 0:00:22.4]} 77.
Rf3 {[%clk 0:00:14.7]} 77... Kg6 {[%clk 0:00:23.7]} 78. Ra3 {[%clk 0:00:15.2]}
78... h5 {[%clk 0:00:24.9]} 79. Rb3 {[%clk 0:00:13.7]} 79... Re6 {[%clk
0:00:26.1]} 80. Rc3 {[%clk 0:00:14.6]} 80... Rf6 {[%clk 0:00:27.6]} 81. Ra3
{[%clk 0:00:15.4]} 81... g4 {[%clk 0:00:28.4]} 82. Ra5 {[%clk 0:00:15.5]} 82...
Rf5 {[%clk 0:00:29.4]} 83. Ra6+ {[%clk 0:00:13.6]} 83... Kg5 {[%clk 0:00:30.5]}
84. Rb6 {[%clk 0:00:14.3]} 84... Re5 {[%clk 0:00:31.1]} 85. Rb4 {[%clk
0:00:14.7]} 85... Kf5 {[%clk 0:00:31.7]} 86. Ra4 {[%clk 0:00:15.1]} 86... Rd5
{[%clk 0:00:32.6]} 87. Rb4 {[%clk 0:00:16.1]} 87... Ke5 {[%clk 0:00:34]} 88. Ra4
{[%clk 0:00:16.8]} 88... Ke6 {[%clk 0:00:34]} 89. Rb4 {[%clk 0:00:17.8]} 1/2-1/2

[Event "*** Titled Tuesday Blitz"]
[Site "Chess.com"]
[Date "2019.03.05"]
[Round "1"]
[White "OparinGrigoriy"]
[Black "Ar4uha"]
[Result "1/2-1/2"]
[WhiteElo "2982"]
[BlackElo "2458"]
[TimeControl "180+2"]
[EndTime "13:12:25 PST"]
[Termination "Game drawn by agreement"]

1. Nf3 {[%clk 0:03:01.7]} 1... Nf6 {[%clk 0:02:58]} 2. g3 {[%clk 0:03:03.6]}
2... e6 {[%clk 0:02:56.3]} 3. Bg2 {[%clk 0:03:04.9]} 3... d5 {[%clk 0:02:53.6]}
4. d4 {[%clk 0:03:06.2]} 4... Be7 {[%clk 0:02:55.5]} 5. c4 {[%clk 0:03:07.5]}
5... O-O {[%clk 0:02:56.4]} 6. Nc3 {[%clk 0:03:08.7]} 6... dxc4 {[%clk
0:02:55.7]} 7. Ne5 {[%clk 0:03:09.9]} 7... Nc6 {[%clk 0:02:30.5]} 8. Bxc6 {[%clk
0:03:09.9]} 8... bxc6 {[%clk 0:02:32.4]} 9. Nxc6 {[%clk 0:03:11.8]} 9... Qe8
{[%clk 0:02:33.7]} 10. Nxe7+ {[%clk 0:03:13.4]} 10... Qxe7 {[%clk 0:02:35.6]}
11. Qa4 {[%clk 0:03:14.8]} 11... c5 {[%clk 0:02:35.1]} 12. dxc5 {[%clk
0:03:16.7]} 12... Qxc5 {[%clk 0:02:32.6]} 13. Be3 {[%clk 0:03:18.2]} 13... Qc7
{[%clk 0:02:31.1]} 14. O-O-O {[%clk 0:03:19.2]} 14... Bd7 {[%clk 0:02:29.7]} 15.
Qa3 {[%clk 0:03:19.8]} 15... Bc6 {[%clk 0:02:29.5]} 16. f3 {[%clk 0:03:20.5]}
16... Rfd8 {[%clk 0:02:29.5]} 17. Rxd8+ {[%clk 0:03:12.5]} 17... Qxd8 {[%clk
0:02:28]} 18. Rd1 {[%clk 0:03:13.1]} 18... Nd5 {[%clk 0:02:29]} 19. Qc5 {[%clk
0:03:06.1]} 19... Qc8 {[%clk 0:02:23.8]} 20. Bd4 {[%clk 0:03:00.6]} 20... Bb7
{[%clk 0:02:18.5]} 21. Qxc8+ {[%clk 0:02:55.7]} 21... Bxc8 {[%clk 0:02:11.9]}
22. e4 {[%clk 0:02:56.9]} 22... Nb4 {[%clk 0:02:11.1]} 23. b3 {[%clk 0:02:50.8]}
23... cxb3 {[%clk 0:02:02]} 24. axb3 {[%clk 0:02:52.7]} 24... Ba6 {[%clk
0:01:47.8]} 25. Kb2 {[%clk 0:02:44.5]} 25... f6 {[%clk 0:01:47.1]} 26. e5 {[%clk
0:02:39]} 26... fxe5 {[%clk 0:01:23.7]} 27. Be3 {[%clk 0:02:39.5]} 27... Bb7
{[%clk 0:01:24.1]} 28. Rd7 {[%clk 0:02:35.2]} 28... Bc6 {[%clk 0:01:22.2]} 29.
Rc7 {[%clk 0:02:33.7]} 29... Bxf3 {[%clk 0:01:22]} 30. Bxa7 {[%clk 0:02:33.7]}
30... Nd5 {[%clk 0:01:22.7]} 31. Nxd5 {[%clk 0:02:22.5]} 31... exd5 {[%clk
0:01:08.7]} 32. b4 {[%clk 0:02:23.9]} 32... d4 {[%clk 0:01:09.7]} 33. b5 {[%clk
0:02:25]} 33... Rf8 {[%clk 0:01:03.6]} 34. Bc5 {[%clk 0:02:25.5]} 34... Rb8
{[%clk 0:01:04.1]} 35. b6 {[%clk 0:02:22.6]} 35... h5 {[%clk 0:00:59.3]} 36. Re7
{[%clk 0:02:17.4]} 36... Rb7 {[%clk 0:00:50.8]} 37. Rxe5 {[%clk 0:02:18.2]}
37... d3 {[%clk 0:00:52.3]} 38. Kc3 {[%clk 0:02:18.9]} 38... Be2 {[%clk
0:00:50.8]} 39. Kd2 {[%clk 0:01:58.1]} 39... Kf7 {[%clk 0:00:48.4]} 40. Rg5
{[%clk 0:01:55.5]} 40... Kf6 {[%clk 0:00:45.7]} 41. h4 {[%clk 0:01:54]} 41... g6
{[%clk 0:00:46.9]} 42. Bd4+ {[%clk 0:01:50.8]} 42... Kf7 {[%clk 0:00:47.8]} 43.
Rc5 {[%clk 0:01:52.2]} 43... Ke6 {[%clk 0:00:39.4]} 44. Rc8 {[%clk 0:01:43.4]}
44... Kf5 {[%clk 0:00:38.3]} 45. Rc7 {[%clk 0:01:39.5]} 45... Rb8 {[%clk
0:00:33.8]} 46. b7 {[%clk 0:01:40.7]} 46... Bf3 {[%clk 0:00:34.5]} 47. Rc5+
{[%clk 0:00:35.7]} 47... Kg4 {[%clk 0:00:30.2]} 48. Rg5+ {[%clk 0:00:26.1]}
48... Kh3 {[%clk 0:00:31.3]} 49. Kxd3 {[%clk 0:00:24.9]} 49... Rxb7 {[%clk
0:00:27.9]} 50. Rxg6 {[%clk 0:00:25.7]} 50... Re7 {[%clk 0:00:25.7]} 51. Rb6
{[%clk 0:00:17.8]} 51... Bg4 {[%clk 0:00:25.1]} 52. Bf2 {[%clk 0:00:14]} 52...
Re2 {[%clk 0:00:26.2]} 53. Be3 {[%clk 0:00:12.7]} 53... Kxg3 {[%clk 0:00:25.7]}
54. Bg5 {[%clk 0:00:14.1]} 54... Re6 {[%clk 0:00:24.6]} 55. Rb3 {[%clk 0:00:14]}
55... Bd1 {[%clk 0:00:17.7]} 56. Ra3 {[%clk 0:00:13.5]} 56... Bg4 {[%clk
0:00:17.9]} 57. Kd4+ {[%clk 0:00:14.3]} 57... Kg2 {[%clk 0:00:19.8]} 58. Bf4
{[%clk 0:00:14.3]} 58... Re8 {[%clk 0:00:17.4]} 59. Be5 {[%clk 0:00:13.1]} 59...
Rf8 {[%clk 0:00:16.4]} 60. Ke4 {[%clk 0:00:12.3]} 60... Bf5+ {[%clk 0:00:14.6]}
61. Ke3 {[%clk 0:00:13.6]} 61... Bg4 {[%clk 0:00:16]} 62. Ra2+ {[%clk
0:00:14.4]} 62... Kg1 {[%clk 0:00:16.4]} 63. Bh2+ {[%clk 0:00:14]} 63... Kh1
{[%clk 0:00:17.2]} 64. Bf4 {[%clk 0:00:15.3]} 64... Rf7 {[%clk 0:00:09.5]} 65.
Rb2 {[%clk 0:00:14.1]} 65... Rf8 {[%clk 0:00:10.5]} 66. Rb4 {[%clk 0:00:11.7]}
66... Re8+ {[%clk 0:00:10.7]} 67. Kd3 {[%clk 0:00:09.6]} 67... Rd8+ {[%clk
0:00:09.8]} 68. Ke4 {[%clk 0:00:09.8]} 68... Re8+ {[%clk 0:00:10.8]} 69. Be5
{[%clk 0:00:11.2]} 69... Rf8 {[%clk 0:00:12.5]} 70. Rb2 {[%clk 0:00:10.8]} 70...
Rf7 {[%clk 0:00:13]} 71. Bf4 {[%clk 0:00:11.3]} 71... Kg1 {[%clk 0:00:14.1]} 72.
Ke5 {[%clk 0:00:11.8]} 72... Rf8 {[%clk 0:00:14.7]} 73. Be3+ {[%clk 0:00:12.5]}
73... Kh1 {[%clk 0:00:13.3]} 74. Bg5 {[%clk 0:00:13.6]} 74... Rf5+ {[%clk
0:00:14.1]} 75. Ke4 {[%clk 0:00:14.8]} 75... Rf8 {[%clk 0:00:15.1]} 76. Ke3
{[%clk 0:00:16.1]} 76... Kg1 {[%clk 0:00:16.1]} 77. Be7 {[%clk 0:00:16.7]} 77...
Re8 {[%clk 0:00:16.9]} 78. Rb7 {[%clk 0:00:18.2]} 78... Kg2 {[%clk 0:00:17.6]}
79. Kf4 {[%clk 0:00:19.6]} 79... Kh3 {[%clk 0:00:18.6]} 80. Kg5 {[%clk
0:00:19.9]} 80... Kg2 {[%clk 0:00:20.5]} 81. Rb2+ {[%clk 0:00:20.4]} 81... Kf3
{[%clk 0:00:21]} 82. Rb3+ {[%clk 0:00:21.4]} 82... Ke4 {[%clk 0:00:22.6]} 83.
Rb4+ {[%clk 0:00:22.4]} 83... Ke5 {[%clk 0:00:24]} 84. Bf6+ {[%clk 0:00:23.4]}
84... Ke6 {[%clk 0:00:25.4]} 85. Rb6+ {[%clk 0:00:24.8]} 85... Kd5 {[%clk
0:00:26.6]} 86. Kg6 {[%clk 0:00:24.1]} 86... Re6 {[%clk 0:00:27]} 87. Rb8 {[%clk
0:00:23.8]} 87... Ke4 {[%clk 0:00:27.4]} 88. Rd8 {[%clk 0:00:24.5]} 88... Ra6
{[%clk 0:00:27.3]} 1/2-1/2

[Event "*** Titled Tuesday Blitz"]
[Site "Chess.com"]
[Date "2019.03.05"]
[Round "1"]
[White "LLRChess"]
[Black "Pechen_Yeltsina"]
[Result "0-1"]
[WhiteElo "2300"]
[BlackElo "2656"]
[TimeControl "180+2"]
[EndTime "13:15:09 PST"]
[Termination "Pechen_Yeltsina won by resignation"]

1. f4 {[%clk 0:03:01.6]} 1... Nh6 {[%clk 0:03:00.2]} 2. Nf3 {[%clk 0:03:01.2]}
2... g6 {[%clk 0:03:00.1]} 3. g3 {[%clk 0:02:59.3]} 3... Bg7 {[%clk 0:03:00.7]}
4. Bg2 {[%clk 0:03:01.2]} 4... d6 {[%clk 0:03:02]} 5. O-O {[%clk 0:03:02.5]}
5... O-O {[%clk 0:03:03.5]} 6. d3 {[%clk 0:03:03]} 6... Nc6 {[%clk 0:03:04.6]}
7. e4 {[%clk 0:03:03.3]} 7... f5 {[%clk 0:03:03.4]} 8. Nc3 {[%clk 0:03:03]} 8...
Nf7 {[%clk 0:02:58.5]} 9. Be3 {[%clk 0:03:02]} 9... e5 {[%clk 0:02:57.3]} 10.
fxe5 {[%clk 0:02:50.6]} 10... Nfxe5 {[%clk 0:02:52.5]} 11. Nxe5 {[%clk
0:02:49.2]} 11... Bxe5 {[%clk 0:02:48.6]} 12. d4 {[%clk 0:02:45.5]} 12... Bg7
{[%clk 0:02:48.4]} 13. Qd2 {[%clk 0:02:25.8]} 13... fxe4 {[%clk 0:02:32.4]} 14.
Rxf8+ {[%clk 0:02:25.5]} 14... Qxf8 {[%clk 0:02:34.3]} 15. Rf1 {[%clk
0:02:25.7]} 15... Qe8 {[%clk 0:02:32.3]} 16. Nxe4 {[%clk 0:02:23.4]} 16... Bf5
{[%clk 0:02:29.6]} 17. Ng5 {[%clk 0:02:21.5]} 17... Qxe3+ {[%clk 0:02:30.1]} 18.
Qxe3 {[%clk 0:02:21.8]} 18... Bxd4 {[%clk 0:02:31.7]} 19. Bd5+ {[%clk
0:02:22.7]} 19... Kg7 {[%clk 0:02:28.5]} 20. Qxd4+ {[%clk 0:02:18.3]} 20... Nxd4
{[%clk 0:02:30.4]} 21. c3 {[%clk 0:02:18.4]} 21... Nc6 {[%clk 0:02:28.8]} 22. g4
{[%clk 0:02:16.9]} 22... h6 {[%clk 0:02:20]} 23. gxf5 {[%clk 0:02:12.1]} 23...
hxg5 {[%clk 0:02:21.3]} 24. f6+ {[%clk 0:02:12.4]} 24... Kh6 {[%clk 0:02:22.8]}
25. Kg2 {[%clk 0:01:48.8]} 25... Rf8 {[%clk 0:02:20.8]} 26. Kg3 {[%clk 0:01:48]}
26... Nd8 {[%clk 0:02:16.8]} 27. Kg4 {[%clk 0:01:42.6]} 27... c6 {[%clk
0:02:12.5]} 28. Bb3 {[%clk 0:01:43.4]} 28... d5 {[%clk 0:02:12.5]} 29. c4 {[%clk
0:01:43.7]} 29... d4 {[%clk 0:01:59.8]} 30. c5 {[%clk 0:01:44.3]} 30... b6
{[%clk 0:02:01.2]} 31. f7 {[%clk 0:01:26]} 31... bxc5 {[%clk 0:01:58.1]} 32. Bc4
{[%clk 0:01:23.7]} 32... Kg7 {[%clk 0:01:57.6]} 33. Re1 {[%clk 0:01:19.9]} 33...
Nxf7 {[%clk 0:01:55.2]} 34. Re7 {[%clk 0:01:21.2]} 34... Kf6 {[%clk 0:01:54.3]}
35. Re6+ {[%clk 0:01:21.7]} 35... Kg7 {[%clk 0:01:55.8]} 36. Bd3 {[%clk
0:01:22.1]} 36... Nh6+ {[%clk 0:01:55.3]} 37. Kxg5 {[%clk 0:01:21]} 37... Nf7+
{[%clk 0:01:55.6]} 38. Kg4 {[%clk 0:01:20.2]} 38... Rc8 {[%clk 0:01:51.7]} 39.
Rxg6+ {[%clk 0:01:18]} 39... Kf8 {[%clk 0:01:52.5]} 40. Kf5 {[%clk 0:01:16.3]}
40... Re8 {[%clk 0:01:46]} 41. Rxc6 {[%clk 0:00:50.2]} 41... Re3 {[%clk
0:01:45.8]} 42. Bc4 {[%clk 0:00:48.9]} 42... Ne5 {[%clk 0:01:32.1]} 43. Rf6+
{[%clk 0:00:44.8]} 43... Kg7 {[%clk 0:01:31.1]} 44. Bd5 {[%clk 0:00:43.8]} 44...
d3 {[%clk 0:01:29.5]} 45. Rd6 {[%clk 0:00:26]} 45... d2 {[%clk 0:01:27.7]} 46.
Bb3 {[%clk 0:00:26.7]} 46... Nd3 {[%clk 0:01:27.7]} 47. Bc2 {[%clk 0:00:23.5]}
47... c4 {[%clk 0:01:27.6]} 48. Rd4 {[%clk 0:00:17.7]} 48... Re1 {[%clk
0:01:25.9]} 49. Rxc4 {[%clk 0:00:15.8]} 49... Rc1 {[%clk 0:01:22.2]} 50. Rd4
{[%clk 0:00:13.8]} 50... d1=Q {[%clk 0:01:10.9]} 51. Bxd1 {[%clk 0:00:14.1]}
51... Rxd1 {[%clk 0:01:12.8]} 52. Rd7+ {[%clk 0:00:14.7]} 52... Kf8 {[%clk
0:01:14.2]} 53. Rxa7 {[%clk 0:00:15.6]} 53... Nxb2 {[%clk 0:01:15.7]} 54. Ke4
{[%clk 0:00:15.5]} 54... Nc4 {[%clk 0:01:15.8]} 55. a4 {[%clk 0:00:15.5]} 55...
Rh1 {[%clk 0:01:15.3]} 56. Kd4 {[%clk 0:00:16]} 56... Nd6 {[%clk 0:01:15.5]} 57.
Rd7 {[%clk 0:00:15.2]} 57... Rd1+ {[%clk 0:01:07.9]} 58. Kc5 {[%clk 0:00:11.9]}
58... Ne4+ {[%clk 0:01:09.1]} 59. Kc6 {[%clk 0:00:13]} 59... Rc1+ {[%clk
0:01:10.4]} 60. Kb5 {[%clk 0:00:13.1]} 60... Rb1+ {[%clk 0:01:11.7]} 61. Kc4
{[%clk 0:00:13.3]} 61... Ra1 {[%clk 0:01:09.5]} 62. Kb4 {[%clk 0:00:12.5]} 62...
Rb1+ {[%clk 0:01:10.1]} 63. Kc4 {[%clk 0:00:13.3]} 63... Ke8 {[%clk 0:01:06.9]}
64. Rh7 {[%clk 0:00:11.3]} 64... Nf6 {[%clk 0:01:03.3]} 65. Rg7 {[%clk 0:00:07]}
65... Nd7 {[%clk 0:01:03.1]} 66. a5 {[%clk 0:00:07.5]} 66... Kd8 {[%clk
0:01:04.6]} 67. a6 {[%clk 0:00:08.3]} 67... Kc7 {[%clk 0:01:03.2]} 68. h4 {[%clk
0:00:08.6]} 68... Ra1 {[%clk 0:01:03.4]} 69. Rg6 {[%clk 0:00:07.4]} 69... Ra4+
{[%clk 0:01:03.6]} 70. Kb5 {[%clk 0:00:07.5]} 70... Rxh4 {[%clk 0:01:04.6]} 71.
a7 {[%clk 0:00:06.7]} 71... Rh5+ {[%clk 0:01:01.7]} 72. Ka6 {[%clk 0:00:04.8]}
72... Nc5+ {[%clk 0:00:59.5]} 73. Kb5 {[%clk 0:00:05.2]} 73... Kb7 {[%clk
0:00:56.5]} 74. Rg7+ {[%clk 0:00:05.2]} 74... Ka8 {[%clk 0:00:57.3]} 75. Kb6
{[%clk 0:00:06.3]} 75... Na4+ {[%clk 0:00:55]} 76. Ka6 {[%clk 0:00:07]} 76...
Rh6+ {[%clk 0:00:56.4]} 77. Ka5 {[%clk 0:00:08.2]} 77... Nc5 {[%clk 0:00:55.7]}
78. Kb5 {[%clk 0:00:09.5]} 78... Nb7 {[%clk 0:00:57]} 79. Kc4 {[%clk 0:00:09.2]}
79... Kxa7 {[%clk 0:00:58.4]} 80. Kd5 {[%clk 0:00:10.7]} 80... Kb6 {[%clk
0:00:59.8]} 81. Rd7 {[%clk 0:00:10.5]} 81... Rh5+ {[%clk 0:00:59.8]} 82. Kd4
{[%clk 0:00:11.2]} 82... Kc6 {[%clk 0:01:00.3]} 83. Rg7 {[%clk 0:00:12.1]} 83...
Rh4+ {[%clk 0:01:01.5]} 84. Ke5 {[%clk 0:00:12.1]} 84... Nc5 {[%clk 0:01:02.7]}
85. Rg6+ {[%clk 0:00:13.1]} 85... Kb5 {[%clk 0:01:04.2]} 86. Kd5 {[%clk
0:00:14.2]} 86... Rh3 {[%clk 0:01:05.6]} 87. Kd4 {[%clk 0:00:13.5]} 87... Rd3+
{[%clk 0:01:06.6]} 88. Ke5 {[%clk 0:00:14.9]} 88... Rd1 {[%clk 0:01:05.8]} 89.
Rd6 {[%clk 0:00:15.9]} 89... Re1+ {[%clk 0:01:06.7]} 90. Kd5 {[%clk 0:00:16.8]}
90... Ne4 {[%clk 0:01:06.6]} 91. Re6 {[%clk 0:00:17.2]} 91... Nc3+ {[%clk
0:01:06.6]} 92. Kd6 {[%clk 0:00:18.4]} 92... Rd1+ {[%clk 0:01:08.1]} 93. Ke5
{[%clk 0:00:18.7]} 93... Kc5 {[%clk 0:01:08.7]} 94. Kf6 {[%clk 0:00:17.2]} 94...
Rf1+ {[%clk 0:01:07.5]} 95. Ke7 {[%clk 0:00:17.6]} 95... Nd5+ {[%clk 0:01:08.9]}
96. Kd7 {[%clk 0:00:18.4]} 96... Rf7+ {[%clk 0:01:09.9]} 97. Ke8 {[%clk
0:00:18.5]} 97... Rg7 {[%clk 0:01:08.1]} 98. Kf8 {[%clk 0:00:17.5]} 98... Ra7
{[%clk 0:01:09.3]} 99. Rh6 {[%clk 0:00:17.1]} 99... Kd4 {[%clk 0:01:10.4]} 100.
Rg6 {[%clk 0:00:17.3]} 100... Ke5 {[%clk 0:01:11.6]} 101. Rg1 {[%clk 0:00:14.7]}
101... Ne7 {[%clk 0:01:06.9]} 102. Kf7 {[%clk 0:00:12.5]} 102... Nf5+ {[%clk
0:01:07.3]} 103. Ke8 {[%clk 0:00:10.3]} 103... Kf6 {[%clk 0:01:00]} 104. Kd8
{[%clk 0:00:10.5]} 104... Rh7 {[%clk 0:00:58.7]} 105. Kc8 {[%clk 0:00:10.4]}
105... Nd6+ {[%clk 0:00:59.4]} 106. Kb8 {[%clk 0:00:10.2]} 106... Rb7+ {[%clk
0:00:58.3]} 107. Ka8 {[%clk 0:00:10.5]} 107... Rb2 {[%clk 0:00:59.3]} 108. Ka7
{[%clk 0:00:10.7]} 108... Ke6 {[%clk 0:01:00.7]} 109. Ka6 {[%clk 0:00:11.4]}
109... Kd5 {[%clk 0:01:02.3]} 110. Rc1 {[%clk 0:00:10.8]} 110... Nc4 {[%clk
0:01:02.9]} 111. Rh1 {[%clk 0:00:09.3]} 111... Kc6 {[%clk 0:01:03.2]} 112. Ka7
{[%clk 0:00:09.4]} 112... Ne5 {[%clk 0:00:57.7]} 113. Rc1+ {[%clk 0:00:08.8]}
113... Kd7 {[%clk 0:00:58.9]} 114. Ka6 {[%clk 0:00:07.7]} 114... Nc6 {[%clk
0:01:00.3]} 115. Rh1 {[%clk 0:00:06.1]} 115... Kc7 {[%clk 0:00:59.7]} 116. Rh7+
{[%clk 0:00:07.7]} 116... Kd6 {[%clk 0:01:01.2]} 117. Rh6+ {[%clk 0:00:09.3]}
117... Kd5 {[%clk 0:01:02.6]} 118. Rh5+ {[%clk 0:00:10.7]} 118... Ne5 {[%clk
0:01:04.1]} 119. Ka7 {[%clk 0:00:11]} 119... Rb4 {[%clk 0:01:00]} 120. Ka6
{[%clk 0:00:11.1]} 120... Kd6 {[%clk 0:01:01.5]} 121. Ka5 {[%clk 0:00:10.4]}
121... Nc6+ {[%clk 0:01:02.1]} 122. Ka6 {[%clk 0:00:11.6]} 122... Kc7 {[%clk
0:01:02.2]} 123. Rh7+ {[%clk 0:00:12.6]} 123... Kc8 {[%clk 0:01:03.6]} 124. Rh8+
{[%clk 0:00:13.6]} 124... Nd8 {[%clk 0:01:05.1]} 125. Ka5 {[%clk 0:00:14]}
125... Rb1 {[%clk 0:01:06.6]} 126. Ka4 {[%clk 0:00:14.9]} 126... Kc7 {[%clk
0:01:06.1]} 127. Ka3 {[%clk 0:00:14.8]} 127... Ne6 {[%clk 0:01:06.3]} 128. Rh6
{[%clk 0:00:13.9]} 128... Nc5 {[%clk 0:01:05.8]} 129. Ka2 {[%clk 0:00:15]}
129... Rb8 {[%clk 0:01:05.8]} 130. Ka3 {[%clk 0:00:15.2]} 130... Nb7 {[%clk
0:01:04.3]} 131. Kb4 {[%clk 0:00:15.4]} 131... Nd6+ {[%clk 0:01:05.8]} 132. Kc3
{[%clk 0:00:15.4]} 132... Kc6 {[%clk 0:01:06.2]} 133. Rh5 {[%clk 0:00:16]}
133... Rg8 {[%clk 0:01:05.5]} 134. Re5 {[%clk 0:00:15.8]} 134... Rh8 {[%clk
0:01:06.2]} 135. Rg5 {[%clk 0:00:16.3]} 135... Ne4+ {[%clk 0:01:07.5]} 136. Kd4
{[%clk 0:00:15.5]} 136... Nxg5 {[%clk 0:01:09.4]} 0-1

[Event "*** Titled Tuesday Blitz"]
[Site "Chess.com"]
[Date "2019.03.05"]
[Round "2"]
[White "StanislavNovikov"]
[Black "CaptainCasanova"]
[Result "1-0"]
[WhiteElo "2660"]
[BlackElo "2779"]
[TimeControl "180+2"]
[EndTime "13:17:11 PST"]
[Termination "StanislavNovikov won by resignation"]

1. e4 {[%clk 0:03:01.9]} 1... e6 {[%clk 0:03:00.8]} 2. Qe2 {[%clk 0:03:02]} 2...
d5 {[%clk 0:03:02.7]} 3. d3 {[%clk 0:03:01.8]} 3... Nf6 {[%clk 0:02:59.2]} 4.
Nf3 {[%clk 0:03:02.3]} 4... c5 {[%clk 0:02:55.6]} 5. g3 {[%clk 0:03:02.4]} 5...
b6 {[%clk 0:02:53.4]} 6. Nbd2 {[%clk 0:02:51.6]} 6... Nc6 {[%clk 0:02:53.4]} 7.
Bg2 {[%clk 0:02:51.2]} 7... Be7 {[%clk 0:02:53.4]} 8. O-O {[%clk 0:02:50.2]}
8... O-O {[%clk 0:02:54.6]} 9. e5 {[%clk 0:02:43.9]} 9... Nd7 {[%clk 0:02:52.9]}
10. h4 {[%clk 0:02:44.8]} 10... Ba6 {[%clk 0:02:52.3]} 11. Re1 {[%clk
0:02:45.1]} 11... Qc7 {[%clk 0:02:52]} 12. Nf1 {[%clk 0:02:45.5]} 12... Rae8
{[%clk 0:02:49.6]} 13. Bf4 {[%clk 0:02:45.5]} 13... Qc8 {[%clk 0:02:45]} 14.
N1h2 {[%clk 0:02:43]} 14... Bf6 {[%clk 0:02:44.6]} 15. exf6 {[%clk 0:02:40.8]}
1-0